[Event "4NCL Div 1 2024-25"]
[Site "England"]
[Date "2024.11.23"]
[Round "1.37"]
[White "Webb, Laurence E"]
[Black "Turner, Max N"]
[Result "1/2-1/2"]
[Annotator "RC"]
[ECO "E12"]
[WhiteElo "2217"]
[BlackElo "2247"]
[PlyCount "100"]
[EventDate "2024.11.23"]
[EventType "team-tourn"]
[EventCountry "ENG"]
[SourceTitle "playchess.com"]
[Source "ChessBase"]
[SourceQuality "1"]
[TimeControl "40/6000+30:3000+30"]

1. d4 {[%emt 0:10:12]} Nf6 {[%emt 0:10:09]} 2. Nf3 {[%emt 0:00:40]} e6 {[%emt 0:00:17]} 3. c4 {[%emt 0:00:17]} b6 {[%emt 0:00:17]} 4. a3 {[%emt 0:02:15]} Bb7 {[%emt 0:00:30]} 5. Nc3 {[%emt 0:00:08]} Ne4 {[%emt 0:00:25]} 6. Nxe4 {[%emt 0:01:46]} Bxe4 {[%emt 0:00:09]} 7. e3 {[%emt 0:00:17]} Be7 {[%emt 0:01:13]} 8. Bd3 {[%emt 0:00:29]} Bxd3 {[%emt 0:02:06]} 9. Qxd3 {[%emt 0:00:11]} d5 {[%emt 0:01:11]} 10. O-O {[%emt 0:06:27]} O-O {[%emt 0:01:15]} 11. e4 {[%emt 0:05:48]} c6 {[%emt 0:05:21]} 12. Bf4 {[%emt 0:08:56]} Nd7 {[%emt 0:07:45]} 13. cxd5 {[%emt 0:01:36]} cxd5 {[%emt 0:00:11]} 14. exd5 {[%emt 0:00:20]} exd5 {[%emt 0:00:06]} 15. Rac1 {[%emt 0:01:22]} Nf6 {[%emt 0:02:36]} 16. Bc7 {[%emt 0:16:57]} Qe8 {[%emt 0:11:15]} 17. Rc2 {[%emt 0:03:17]} Qa4 {[%emt 0:03:50]} 18. Rfc1 {[%emt 0:01:09]} Rfc8 {[%emt 0:02:37]} 19. Bf4 {[%emt 0:03:27]} Rxc2 {[%emt 0:04:34]} 20. Qxc2 {[%emt 0:00:31]} Qxc2 {[%emt 0:03:11]} 21. Rxc2 {[%emt 0:00:02]} Ne8 {[%emt 0:07:59]} 22. Ne5 {[%emt 0:05:20]} f6 {[%emt 0:09:46]} 23. Nc6 {[%emt 0:01:24]} Bf8 {[%emt 0:07:19]} 24. f3 {[%emt 0:03:54]} Kf7 {[%emt 0:05:17]} 25. Kf2 {[%emt 0:01:46]} a5 {[%emt 0:06:10]} 26. Bg3 {[%emt 0:08:47]} Nd6 {[%emt 0:06:29]} 27. Bxd6 {[%emt 0:13:03]} Bxd6 {[%emt 0:00:06]} 28. b4 {[%emt 0:03:28]} Ke6 {[%emt 0:02:20]} 29. Rc3 {[%emt 0:03:49]} axb4 {[%emt 0:02:51]} 30. Nxb4 {[%emt 0:00:27]} Bxb4 {[%emt 0:00:53]} 31. axb4 {[%emt 0:00:03]} Kd7 {[%emt 0:00:11]} 32. Rc2 {[%emt 0:01:58]} Ra3 {[%emt 0:02:14]} 33. b5 {[%emt 0:03:52]} Ra5 {[%emt 0:01:48]} 34. Rb2 {[%emt 0:00:30]} h6 {[%emt 0:03:39]} 35. g4 {[%emt 0:00:30]} g5 {[%emt 0:00:30]} 36. h3 {[%emt 0:01:27]} Kd6 {[%emt 0:00:57]} 37. f4 {[%emt 0:01:16]} Ra4 {[%emt 0:00:51]} 38. Rc2 {[%emt 0:01:15]} Rc4 {[%emt 0:00:10]} 39. Rd2 {[%emt 0:00:19]} Rb4 {[%emt 0:00:47]} 40. f5 {[%emt 0:00:30]} Ke7 {[%emt 0:00:38]} 41. Rc2 {[%emt 0:26:49]} Rxb5 {[%emt 0:34:45]} 42. Rc7+ {[%emt 0:00:33]} Ke8 {[%emt 0:00:35]} 43. Rc6 {[%emt 0:02:27]} Rb2+ {[%emt 0:01:55]} 44. Ke1 {[%emt 0:03:40]} Rb3 {[%emt 0:05:58]} 45. Rxf6 {[%emt 0:04:46]} Rxh3 {[%emt 0:00:05]} 46. Rxb6 {[%emt 0:15:30]} Rd3 {[%emt 0:01:23]} 47. Kf2 {[%emt 0:00:00]} Rxd4 {[%emt 0:00:11]} 48. Kg3 {[%emt 0:00:00]} Rd3+ {[%emt 0:01:57]} 49. Kf2 {[%emt 0:00:00]} Rd4 {[%emt 0:01:57]} 50. Kg3 {[%emt 0:00:00]} Rd3+ {[%emt 0:02:13]} 1/2-1/2

[Event "4NCL Div 1 2024-25"]
[Site "England"]
[Date "2024.11.23"]
[Round "1.38"]
[White "Li, Harry"]
[Black "Ledger, Dave J"]
[Result "1/2-1/2"]
[Annotator "RC"]
[ECO "C78"]
[WhiteElo "2203"]
[BlackElo "2191"]
[PlyCount "130"]
[EventDate "2024.11.23"]
[EventType "team-tourn"]
[EventCountry "ENG"]
[SourceTitle "playchess.com"]
[Source "ChessBase"]
[SourceQuality "1"]
[TimeControl "40/6000+30:3000+30"]

1. e4 {[%emt 0:10:03]} e5 {[%emt 0:10:06]} 2. Nf3 {[%emt 0:00:02]} Nc6 {[%emt 0:00:07]} 3. Bb5 {[%emt 0:00:04]} a6 {[%emt 0:00:26]} 4. Ba4 {[%emt 0:00:05]} Nf6 {[%emt 0:00:12]} 5. O-O {[%emt 0:00:07]} b5 {[%emt 0:00:40]} 6. Bb3 {[%emt 0:00:05]} Bc5 {[%emt 0:00:04]} 7. a4 {[%emt 0:00:23]} Rb8 {[%emt 0:00:54]} 8. c3 {[%emt 0:00:18]} d6 {[%emt 0:01:48]} 9. d4 {[%emt 0:00:06]} Bb6 {[%emt 0:00:04]} 10. a5 {[%emt 0:00:04]} Ba7 {[%emt 0:00:06]} 11. h3 {[%emt 0:00:06]} O-O {[%emt 0:02:44]} 12. Be3 {[%emt 0:00:15]} Nxe4 {[%emt 0:03:11]} 13. Bd5 {[%emt 0:01:53]} exd4 {[%emt 0:00:08]} 14. cxd4 {[%emt 0:00:41]} Qe8 {[%emt 0:08:02]} 15. Qc2 {[%emt 0:00:26]} Nb4 {[%emt 0:01:08]} 16. Qxe4 {[%emt 0:00:06]} Qxe4 {[%emt 0:00:10]} 17. Bxe4 {[%emt 0:00:03]} d5 {[%emt 0:00:21]} 18. Bxh7+ {[%emt 0:12:26]} Kxh7 {[%emt 0:04:23]} 19. Rc1 {[%emt 0:01:33]} Rb7 {[%emt 0:12:53]} 20. Ra3 {[%emt 0:11:08]} Bf5 {[%emt 0:07:09]} 21. g4 {[%emt 0:01:44]} Be4 {[%emt 0:04:11]} 22. Nbd2 {[%emt 0:03:34]} Nd3 {[%emt 0:03:16]} 23. Nxe4 {[%emt 0:15:34]} dxe4 {[%emt 0:00:16]} 24. Ng5+ {[%emt 0:00:03]} Kg8 {[%emt 0:01:03]} 25. Rb1 {[%emt 0:02:25]} Re8 {[%emt 0:19:22]} 26. Nxe4 {[%emt 0:01:30]} Nb4 {[%emt 0:00:49]} 27. Nc5 {[%emt 0:13:54]} Bxc5 {[%emt 0:00:52]} 28. dxc5 {[%emt 0:00:02]} c6 {[%emt 0:01:57]} 29. Bd2 {[%emt 0:05:32]} Nd5 {[%emt 0:02:41]} 30. b4 {[%emt 0:00:29]} Re2 {[%emt 0:02:26]} 31. Rd3 {[%emt 0:01:08]} Rbe7 {[%emt 0:00:15]} 32. Kf1 {[%emt 0:00:50]} Kf8 {[%emt 0:02:27]} 33. h4 {[%emt 0:05:17]} f6 {[%emt 0:01:45]} 34. h5 {[%emt 0:02:54]} R2e4 {[%emt 0:00:25]} 35. f3 {[%emt 0:00:46]} Rc4 {[%emt 0:00:21]} 36. Kf2 {[%emt 0:10:37]} Kf7 {[%emt 0:02:11]} 37. Kg3 {[%emt 0:05:41]} Re2 {[%emt 0:03:08]} 38. Re1 {[%emt 0:00:08]} Rxe1 {[%emt 0:02:10]} 39. Bxe1 {[%emt 0:00:02]} Rc1 {[%emt 0:00:42]} 40. Kf2 {[%emt 0:02:51]} Rb1 {[%emt 0:00:49]} 41. Rd4 {[%emt 0:50:51]} Rb3 {[%emt 0:57:35]} 42. Bd2 {[%emt 0:00:36]} Rb2 {[%emt 0:01:26]} 43. Ke2 {[%emt 0:01:56]} Ke6 {[%emt 0:00:32]} 44. f4 {[%emt 0:02:46]} Rb3 {[%emt 0:01:01]} 45. Kf2 {[%emt 0:00:00]} Kf7 {[%emt 0:00:00]} 46. Kg2 {[%emt 0:02:26]} Rb1 {[%emt 0:00:00]} 47. Kf3 {[%emt 0:00:00]} Rg1 {[%emt 0:00:00]} 48. f5 {[%emt 0:00:00]} Rh1 {[%emt 0:00:00]} 49. Re4 {[%emt 0:00:00]} Rh3+ {[%emt 0:00:00]} 50. Ke2 {[%emt 0:00:00]} Rh2+ {[%emt 0:00:00]} 51. Kd3 {[%emt 0:00:00]} Rh3+ {[%emt 0:00:00]} 52. Kc2 {[%emt 0:00:00]} Rh4 {[%emt 0:00:00]} 53. Rd4 {[%emt 0:00:00]} Ke8 {[%emt 0:00:00]} 54. Kd3 {[%emt 0:00:00]} Kf7 {[%emt 0:00:00]} 55. Ke2 {[%emt 0:00:00]} Ke8 {[%emt 0:00:00]} 56. Be1 {[%emt 0:00:00]} Rh3 {[%emt 0:00:00]} 57. Re4+ {[%emt 0:00:00]} Kd7 {[%emt 0:00:00]} 58. Bd2 {[%emt 0:00:00]} Rh2+ {[%emt 0:00:00]} 59. Kd3 {[%emt 0:00:00]} Rh3+ {[%emt 0:00:00]} 60. Kc2 {[%emt 0:00:00]} Rh4 {[%emt 0:00:00]} 61. Bc1 {[%emt 0:00:27]} Rh2+ {[%emt 0:00:00]} 62. Bd2 {[%emt 0:00:07]} Rh4 {[%emt 0:00:00]} 63. Kd1 {[%emt 0:01:31]} Rh1+ {[%emt 0:00:00]} 64. Kc2 {[%emt 0:00:51]} Rh4 {[%emt 0:00:00]} 65. Kd1 {[%emt 0:00:25]} Rh1+ {[%emt 0:00:00]} 1/2-1/2

[Event "4NCL Div 1 2024-25"]
[Site "England"]
[Date "2024.11.23"]
[Round "1.39"]
[White "Duncan, Chris R"]
[Black "Carroll, Thomas"]
[Result "1-0"]
[Annotator "RC"]
[ECO "D15"]
[WhiteElo "2167"]
[BlackElo "2126"]
[PlyCount "111"]
[EventDate "2024.11.23"]
[EventType "team-tourn"]
[EventCountry "ENG"]
[SourceTitle "playchess.com"]
[Source "ChessBase"]
[SourceQuality "1"]
[TimeControl "40/6000+30:3000+30"]

1. Nf3 {[%emt 0:14:34]} d5 {[%emt 0:10:10]} 2. d4 {[%emt 0:00:33]} Nf6 {[%emt 0:00:09]} 3. c4 {[%emt 0:00:06]} c6 {[%emt 0:00:06]} 4. Nc3 {[%emt 0:00:06]} a6 {[%emt 0:00:06]} 5. g3 {[%emt 0:00:10]} dxc4 {[%emt 0:07:17]} 6. Bg2 {[%emt 0:00:37]} c5 {[%emt 0:00:24]} 7. O-O {[%emt 0:16:14]} cxd4 {[%emt 0:01:28]} 8. Nxd4 {[%emt 0:02:08]} e5 {[%emt 0:03:48]} 9. Nc2 {[%emt 0:00:21]} Qxd1 {[%emt 0:07:44]} 10. Rxd1 {[%emt 0:00:37]} Nc6 {[%emt 0:00:27]} 11. Bg5 {[%emt 0:09:33]} Be7 {[%emt 0:06:52]} 12. Ne3 {[%emt 0:00:54]} Be6 {[%emt 0:01:50]} 13. Bxf6 {[%emt 0:05:21]} gxf6 {[%emt 0:04:19]} 14. Ncd5 {[%emt 0:02:11]} Bxd5 {[%emt 0:12:24]} 15. Nxd5 {[%emt 0:03:58]} Rc8 {[%emt 0:04:50]} 16. Nb6 {[%emt 0:07:03]} Rc7 {[%emt 0:02:42]} 17. Rac1 {[%emt 0:02:24]} Nd4 {[%emt 0:05:29]} 18. Kf1 {[%emt 0:01:58]} Bd8 {[%emt 0:09:35]} 19. e3 {[%emt 0:03:25]} Ne6 {[%emt 0:00:57]} 20. Rxc4 {[%emt 0:01:31]} O-O {[%emt 0:09:31]} 21. Rxc7 {[%emt 0:01:21]} Bxc7 {[%emt 0:00:23]} 22. Nd7 {[%emt 0:00:51]} Rd8 {[%emt 0:01:41]} 23. Nxf6+ {[%emt 0:00:32]} Kh8 {[%emt 0:03:54]} 24. Rxd8+ {[%emt 0:03:31]} Nxd8 {[%emt 0:00:18]} 25. Ke2 {[%emt 0:00:52]} Bd6 {[%emt 0:02:38]} 26. Kd3 {[%emt 0:01:10]} Be7 {[%emt 0:00:33]} 27. Nd7 {[%emt 0:02:30]} f6 {[%emt 0:04:22]} 28. Kc4 {[%emt 0:00:40]} b5+ {[%emt 0:01:53]} 29. Kd5 {[%emt 0:00:42]} Kg7 {[%emt 0:00:42]} 30. Bf1 {[%emt 0:01:33]} Bb4 {[%emt 0:02:22]} 31. Nc5 {[%emt 0:01:12]} a5 {[%emt 0:00:44]} 32. Bxb5 {[%emt 0:00:31]} Nf7 {[%emt 0:01:29]} 33. a3 {[%emt 0:00:53]} Bd2 {[%emt 0:00:18]} 34. h4 {[%emt 0:04:47]} f5 {[%emt 0:01:21]} 35. e4 {[%emt 0:08:26]} fxe4 {[%emt 0:00:04]} 36. Nxe4 {[%emt 0:00:20]} Bc1 {[%emt 0:00:36]} 37. b4 {[%emt 0:00:29]} axb4 {[%emt 0:00:06]} 38. axb4 {[%emt 0:00:09]} Ba3 {[%emt 0:01:10]} 39. Kc4 {[%emt 0:00:51]} Kf8 {[%emt 0:00:37]} 40. Kb3 {[%emt 0:02:05]} Bc1 {[%emt 0:00:06]} 41. Bc4 {[%emt 0:50:27]} Nd8 {[%emt 0:51:59]} 42. Bd5 {[%emt 0:00:36]} Ke7 {[%emt 0:01:19]} 43. b5 {[%emt 0:00:50]} h6 {[%emt 0:01:55]} 44. Kc4 {[%emt 0:00:57]} Kd7 {[%emt 0:01:01]} 45. b6 {[%emt 0:06:03]} Nc6 {[%emt 0:00:35]} 46. Nf6+ {[%emt 0:05:58]} Kd6 {[%emt 0:00:29]} 47. Ne4+ {[%emt 0:00:34]} Kd7 {[%emt 0:00:07]} 48. b7 {[%emt 0:00:38]} Nb8 {[%emt 0:00:43]} 49. Kd3 {[%emt 0:00:00]} Na6 {[%emt 0:00:00]} 50. Nf6+ {[%emt 0:00:00]} Kd6 {[%emt 0:00:00]} 51. Ke4 {[%emt 0:00:00]} Bd2 {[%emt 0:00:00]} 52. Ng4 {[%emt 0:00:00]} Be1 {[%emt 0:00:00]} 53. Nxh6 {[%emt 0:00:00]} Bxf2 {[%emt 0:00:00]} 54. Nf5+ {[%emt 0:00:00]} Kc7 {[%emt 0:00:00]} 55. h5 {[%emt 0:00:00]} Nc5+ {[%emt 0:00:00]} 56. Kxe5 {[%emt 0:00:00]} 1-0

[Event "4NCL Div 1 2024-25"]
[Site "England"]
[Date "2024.11.23"]
[Round "1.40"]
[White "Wall, Tim P"]
[Black "Varney, Zoe"]
[Result "1-0"]
[Annotator "RC"]
[ECO "B13"]
[WhiteElo "2168"]
[BlackElo "1996"]
[PlyCount "101"]
[EventDate "2024.11.23"]
[EventType "team-tourn"]
[EventCountry "ENG"]
[SourceTitle "playchess.com"]
[Source "ChessBase"]
[SourceQuality "1"]
[TimeControl "40/6000+30:3000+30"]

1. d4 {[%emt 0:10:05]} d5 {[%emt 0:10:12]} 2. Nc3 {[%emt 0:00:12]} Nf6 {[%emt 0:00:13]} 3. Bf4 {[%emt 0:00:09]} c5 {[%emt 0:00:27]} 4. e3 {[%emt 0:00:27]} cxd4 {[%emt 0:00:46]} 5. exd4 {[%emt 0:00:12]} a6 {[%emt 0:00:33]} 6. Nf3 {[%emt 0:00:21]} Nc6 {[%emt 0:00:51]} 7. Ne5 {[%emt 0:00:21]} Bd7 {[%emt 0:02:36]} 8. g3 {[%emt 0:04:42]} e6 {[%emt 0:03:17]} 9. Bg2 {[%emt 0:00:17]} Qb6 {[%emt 0:21:12]} 10. Nxc6 {[%emt 0:07:15]} Bxc6 {[%emt 0:01:27]} 11. Rb1 {[%emt 0:01:27]} Be7 {[%emt 0:06:39]} 12. O-O {[%emt 0:00:23]} O-O {[%emt 0:01:06]} 13. Re1 {[%emt 0:11:56]} Rac8 {[%emt 0:06:39]} 14. a3 {[%emt 0:06:31]} Rfd8 {[%emt 0:11:26]} 15. h4 {[%emt 0:04:30]} Qa7 {[%emt 0:20:24]} 16. Ne2 {[%emt 0:14:07]} Ba4 {[%emt 0:03:47]} 17. Nc3 {[%emt 0:05:20]} Be8 {[%emt 0:03:24]} 18. Na2 {[%emt 0:10:20]} b5 {[%emt 0:04:51]} 19. c3 {[%emt 0:02:21]} Bc6 {[%emt 0:06:06]} 20. Nb4 {[%emt 0:00:50]} a5 {[%emt 0:01:44]} 21. Nxc6 {[%emt 0:01:40]} Rxc6 {[%emt 0:00:04]} 22. Bf1 {[%emt 0:00:58]} Qb6 {[%emt 0:02:25]} 23. Bd3 {[%emt 0:04:19]} Rdc8 {[%emt 0:00:55]} 24. Ra1 {[%emt 0:01:58]} b4 {[%emt 0:00:42]} 25. cxb4 {[%emt 0:00:20]} axb4 {[%emt 0:00:23]} 26. a4 {[%emt 0:00:06]} Kf8 {[%emt 0:00:45]} 27. Be3 {[%emt 0:05:31]} Qa5 {[%emt 0:00:10]} 28. Re2 {[%emt 0:01:13]} h6 {[%emt 0:00:41]} 29. Bb5 {[%emt 0:03:59]} Rb6 {[%emt 0:00:34]} 30. Rc1 {[%emt 0:00:26]} Qa8 {[%emt 0:00:27]} 31. Rec2 {[%emt 0:00:41]} Rxc2 {[%emt 0:00:27]} 32. Qxc2 {[%emt 0:00:08]} Bd6 {[%emt 0:00:33]} 33. Qe2 {[%emt 0:04:28]} Ke7 {[%emt 0:00:28]} 34. Ra1 {[%emt 0:00:54]} Qb8 {[%emt 0:00:29]} 35. Bd3 {[%emt 0:00:16]} Rc6 {[%emt 0:00:36]} 36. Kg2 {[%emt 0:00:12]} Bc7 {[%emt 0:00:33]} 37. a5 {[%emt 0:00:32]} Ne8 {[%emt 0:00:25]} 38. Bb5 {[%emt 0:00:51]} Rd6 {[%emt 0:00:12]} 39. a6 {[%emt 0:00:38]} Qa7 {[%emt 0:00:16]} 40. Bxe8 {[%emt 0:02:18]} Kxe8 {[%emt 0:00:03]} 41. Bf4 {[%emt 0:52:34]} Rd8 {[%emt 0:33:31]} 42. Qb5+ {[%emt 0:00:00]} Ke7 {[%emt 0:03:46]} 43. Qxb4+ {[%emt 0:00:00]} Bd6 {[%emt 0:00:50]} 44. Bxd6+ {[%emt 0:00:00]} Rxd6 {[%emt 0:00:05]} 45. Ra4 {[%emt 0:00:00]} f6 {[%emt 0:06:33]} 46. Ra5 {[%emt 0:00:00]} g5 {[%emt 0:02:39]} 47. h5 {[%emt 0:00:00]} f5 {[%emt 0:03:47]} 48. Ra3 {[%emt 0:00:00]} g4 {[%emt 0:03:56]} 49. Ra4 {[%emt 0:00:00]} Kd7 {[%emt 0:00:24]} 50. Qc5 {[%emt 0:00:00]} Qa8 {[%emt 0:00:35]} 51. a7 {[%emt 0:00:00]} 1-0

[Event "4NCL Div 1 2024-25"]
[Site "England"]
[Date "2024.11.23"]
[Round "1.41"]
[White "Parker, Jonathan F"]
[Black "Olson, Hamish"]
[Result "1-0"]
[Annotator "RC"]
[ECO "D60"]
[WhiteElo "2523"]
[BlackElo "2374"]
[PlyCount "139"]
[EventDate "2024.11.23"]
[EventType "team-tourn"]
[EventCountry "ENG"]
[SourceTitle "playchess.com"]
[Source "ChessBase"]
[SourceQuality "1"]
[TimeControl "40/6000+30:3000+30"]

1. d4 {[%emt 0:16:02]} d5 {[%emt 0:10:11]} 2. c4 {[%emt 0:00:05]} e6 {[%emt 0:00:09]} 3. Nf3 {[%emt 0:00:20]} Nf6 {[%emt 0:00:12]} 4. Nc3 {[%emt 0:00:19]} Nbd7 {[%emt 0:00:27]} 5. Bg5 {[%emt 0:05:00]} h6 {[%emt 0:00:51]} 6. Bh4 {[%emt 0:00:08]} Be7 {[%emt 0:00:16]} 7. e3 {[%emt 0:00:08]} O-O {[%emt 0:00:24]} 8. Bd3 {[%emt 0:05:03]} c5 {[%emt 0:01:08]} 9. cxd5 {[%emt 0:04:11]} Nxd5 {[%emt 0:01:04]} 10. Bxe7 {[%emt 0:03:11]} Qxe7 {[%emt 0:02:26]} 11. Nxd5 {[%emt 0:04:00]} exd5 {[%emt 0:00:04]} 12. dxc5 {[%emt 0:00:06]} Nxc5 {[%emt 0:02:12]} 13. O-O {[%emt 0:00:15]} Qf6 {[%emt 0:06:36]} 14. Nd4 {[%emt 0:03:14]} Ne6 {[%emt 0:03:59]} 15. Qf3 {[%emt 0:02:52]} Qxf3 {[%emt 0:12:20]} 16. Nxf3 {[%emt 0:00:06]} Bd7 {[%emt 0:03:56]} 17. Rfd1 {[%emt 0:08:21]} Rfd8 {[%emt 0:06:01]} 18. Bc2 {[%emt 0:03:02]} Bc6 {[%emt 0:04:05]} 19. Bb3 {[%emt 0:03:08]} a5 {[%emt 0:00:42]} 20. a3 {[%emt 0:12:26]} a4 {[%emt 0:01:32]} 21. Ba2 {[%emt 0:00:04]} Ra5 {[%emt 0:03:40]} 22. Rac1 {[%emt 0:01:43]} Rc5 {[%emt 0:11:07]} 23. Rxc5 {[%emt 0:08:48]} Nxc5 {[%emt 0:00:03]} 24. Nd4 {[%emt 0:00:06]} Ne6 {[%emt 0:07:37]} 25. Ne2 {[%emt 0:05:17]} Rd7 {[%emt 0:08:29]} 26. Nc3 {[%emt 0:01:13]} Nc7 {[%emt 0:01:11]} 27. f3 {[%emt 0:00:04]} Kf8 {[%emt 0:01:53]} 28. Kf2 {[%emt 0:00:12]} h5 {[%emt 0:01:53]} 29. h4 {[%emt 0:00:19]} Ke7 {[%emt 0:00:20]} 30. Rd4 {[%emt 0:06:28]} b5 {[%emt 0:00:17]} 31. Rd2 {[%emt 0:00:05]} Rd8 {[%emt 0:04:58]} 32. Ke1 {[%emt 0:05:13]} b4 {[%emt 0:04:27]} 33. axb4 {[%emt 0:00:11]} Rb8 {[%emt 0:00:42]} 34. b5 {[%emt 0:00:45]} Bxb5 {[%emt 0:01:03]} 35. Bxd5 {[%emt 0:01:27]} Be8 {[%emt 0:00:42]} 36. e4 {[%emt 0:00:45]} g6 {[%emt 0:01:12]} 37. Ba2 {[%emt 0:04:21]} Ra8 {[%emt 0:01:19]} 38. Rc2 {[%emt 0:03:20]} a3 {[%emt 0:01:48]} 39. bxa3 {[%emt 0:00:05]} Rxa3 {[%emt 0:00:46]} 40. Kd2 {[%emt 0:00:31]} Ra7 {[%emt 0:01:16]} 41. Bc4 {[%emt 0:50:54]} f6 {[%emt 0:56:43]} 42. Ne2 {[%emt 0:02:58]} Rb7 {[%emt 0:00:00]} 43. Ke3 {[%emt 0:00:00]} Bf7 {[%emt 0:00:00]} 44. Bd3 {[%emt 0:00:00]} Ne6 {[%emt 0:00:00]} 45. Nc3 {[%emt 0:00:00]} Nc5 {[%emt 0:00:00]} 46. Bb5 {[%emt 0:00:00]} Bb3 {[%emt 0:00:00]} 47. Rc1 {[%emt 0:00:00]} Bf7 {[%emt 0:00:00]} 48. Ra1 {[%emt 0:00:00]} Nd7 {[%emt 0:00:00]} 49. Bxd7 {[%emt 0:00:00]} Rxd7 {[%emt 0:00:00]} 50. Ne2 {[%emt 0:00:00]} Kf8 {[%emt 0:00:00]} 51. Rc1 {[%emt 0:00:00]} Rb7 {[%emt 0:00:00]} 52. Rc2 {[%emt 0:00:00]} Ra7 {[%emt 0:00:00]} 53. Nf4 {[%emt 0:00:00]} Rb7 {[%emt 0:00:00]} 54. Nd3 {[%emt 0:00:00]} Ra7 {[%emt 0:00:00]} 55. Kf4 {[%emt 0:01:05]} Ra5 {[%emt 0:07:59]} 56. Rc6 {[%emt 0:01:34]} Kg7 {[%emt 0:00:00]} 57. Nc5 {[%emt 0:00:08]} Ra2 {[%emt 0:00:00]} 58. Kg3 {[%emt 0:01:33]} Ra7 {[%emt 0:00:00]} 59. Rc8 {[%emt 0:02:05]} Re7 {[%emt 0:00:00]} 60. Kf4 {[%emt 0:00:05]} Ra7 {[%emt 0:00:00]} 61. Rb8 {[%emt 0:01:29]} Rc7 {[%emt 0:00:00]} 62. Rb5 {[%emt 0:00:35]} Rc6 {[%emt 0:00:00]} 63. Ke3 {[%emt 0:00:20]} Rc8 {[%emt 0:00:00]} 64. Ra5 {[%emt 0:00:14]} Rc6 {[%emt 0:00:00]} 65. Rb5 {[%emt 0:03:21]} Rc8 {[%emt 0:00:00]} 66. Kd4 {[%emt 0:00:38]} Rd8+ {[%emt 0:00:00]} 67. Kc3 {[%emt 0:00:10]} Rc8 {[%emt 0:00:00]} 68. Ra5 {[%emt 0:00:15]} Rd8 {[%emt 0:00:00]} 69. Ra7 {[%emt 0:00:20]} g5 {[%emt 0:03:19]} 70. Ne6+ {[%emt 0:00:11]} 1-0

[Event "4NCL Div 1 2024-25"]
[Site "England"]
[Date "2024.11.23"]
[Round "1.42"]
[White "Waldhausen Gordon, Frederick"]
[Black "Merry, Alan B"]
[Result "0-1"]
[Annotator "TA"]
[ECO "D24"]
[WhiteElo "2361"]
[BlackElo "2417"]
[PlyCount "84"]
[EventDate "2024.11.23"]
[EventType "team-tourn"]
[EventCountry "ENG"]
[SourceTitle "playchess.com"]
[Source "ChessBase"]
[SourceQuality "1"]
[TimeControl "40/6000+30:3000+30"]

{[%evp 18,84,43,51,53,24,19,27,25,24,47,22,34,0,3,0,0,0,6,-9,-10,0,-19,-8,0,0,0,-19,-8,-25,0,-294,-299,-279,-271,-439,-311,-428,-380,-441,-440,-764,-618,-1098,-1045,-994,-950,-708,-620,-1090,-959,-1246,-1127,-1642,-1547,-1614,-1391,-5093,-2253,-5222,-5093,-29975,-29976,-29975,-29977,-29976,-4610,-29979,-29980]} 1. d4 {[%emt 0:10:03]} Nf6 {[%emt 0:10:05]} 2. c4 {[%emt 0:00:03]} e6 {[%emt 0:00:03]} 3. Nf3 {[%emt 0:00:07]} d5 {[%emt 0:00:03]} 4. Nc3 {[%emt 0:00:06]} dxc4 {[%emt 0:00:05]} 5. e4 {[%emt 0:00:07]} b5 {[%emt 0:00:04]} 6. e5 {[%emt 0:00:05]} Nd5 {[%emt 0:00:05]} 7. Nxb5 {[%emt 0:00:04]} Nb6 {[%emt 0:00:07]} 8. Be2 {[%emt 0:00:14]} Nc6 {[%emt 0:00:04]} 9. O-O {[%emt 0:00:08]} Be7 {[%emt 0:00:14]} 10. Be3 {[%emt 0:00:42]} O-O {[%emt 0:10:48]} 11. Qc1 {[%emt 0:03:07]} Rb8 {[%emt 0:19:18]} 12. Nc3 {[%emt 0:00:26]} Nb4 {[%emt 0:02:28]} 13. Rd1 {[%emt 0:04:40]} Ba6 {[%emt 0:01:16]} 14. a3 {[%emt 0:05:19]} N4d5 {[%emt 0:05:40]} 15. b3 {[%emt 0:11:45]} Qc8 {[%emt 0:13:45]} 16. Nxd5 {[%emt 0:08:34]} exd5 {[%emt 0:00:21]} 17. bxc4 {[%emt 0:00:11]} Bxc4 {[%emt 0:02:05]} 18. Bxc4 {[%emt 0:00:40]} Nxc4 {[%emt 0:03:39]} 19. Bg5 {[%emt 0:02:50]} Bxg5 {[%emt 0:02:49]} 20. Qxg5 {[%emt 0:00:12]} Rb2 {[%emt 0:03:20]} 21. Nh4 {[%emt 0:06:18]} h6 {[%emt 0:04:39]} 22. Qh5 {[%emt 0:02:09]} Qe6 {[%emt 0:02:54]} 23. f4 {[%emt 0:04:31]} Qb6 {[%emt 0:08:32]} 24. f5 $2 {[%emt 0:30:09][%mdl 8192] [#]} (24. Nf5 $11 {and White stays safe.}) 24... Ne3 $1 $19 {[%emt 0:12:22]} (24... Nxe5 25. f6 Re8 26. fxg7 $17) 25. f6 {[%emt 0:07:12]} Nxd1 {[%emt 0:00:26]} 26. Qg4 $2 {[%emt 0:00:51]} (26. Rxd1 Rb1 (26... gxf6 $2 27. Nf5 $18) 27. Nf5 Rxd1+ (27... gxf6 28. Qg4+ Kh8 29. Qg7#) 28. Qxd1) 26... g5 {[%emt 0:00:36]} 27. Rxd1 {[%emt 0:00:15]} Rb1 {[%emt 0:00:54]} 28. Nf5 {[%emt 0:01:01]} Rb8 {[%emt 0:04:04]} 29. Nxh6+ {[%emt 0:03:16]} (29. h4 $142 Rxd1+ 30. Qxd1) 29... Kf8 $19 {[%emt 0:00:10]} 30. h3 {[%emt 0:01:43]} Rxd1+ {[%emt 0:00:13]} 31. Qxd1 {[%emt 0:00:05]} Qb1 {[%emt 0:00:09]} 32. Qxb1 {[%emt 0:00:04]} Rxb1+ {[%emt 0:00:04]} 33. Kf2 {[%emt 0:00:04]} Ra1 {[%emt 0:00:42]} 34. Nf5 {[%emt 0:00:40]} Rxa3 {[%emt 0:00:06]} 35. Ne7 {[%emt 0:00:05]} a5 {[%emt 0:02:10]} 36. Nxd5 {[%emt 0:00:14]} a4 {[%emt 0:00:40]} 37. Nxc7 {[%emt 0:00:20]} Rb3 {[%emt 0:00:58]} (37... Rc3 $142 38. Nd5 Rb3 (38... Rd3 $2 39. Ke2 $19)) 38. d5 {[%emt 0:00:28]} a3 {[%emt 0:00:50]} 39. e6 {[%emt 0:00:22]} fxe6 {[%emt 0:00:45]} 40. dxe6 {[%emt 0:00:11]} Rb8 {[%emt 0:00:35]} 41. Na6 {[%emt 0:51:21]} Ra8 {[%emt 0:50:48]} (41... Rc8 $142 42. Nb4 Rc4 43. Nd3 a2 44. Ne5 Rf4+ (44... a1=B $2 {loses.} 45. Nd7+ Ke8 46. f7+ Ke7 47. f8=Q+ $18) (44... a1=Q $2 45. Ng6+ Kg8 46. f7+ Kh7 47. f8=Q $19) 45. Kg3 a1=Q (45... a1=B 46. Ng6+ Ke8 47. Nxf4 $11) 46. Ng6+ Kg8 (46... Ke8 $2 47. Nxf4 Qe5 48. f7+ Ke7 49. Kf3 $19) 47. Nxf4 Qe5 (47... gxf4+ $2 48. Kxf4 Qxf6+ 49. Kg3 $19) 48. f7+ Kf8 49. e7+ Kxf7 (49... Kxe7 {leads to mate.} 50. Kf3 gxf4 51. f8=R Kxf8 52. Kg4 Ke7 53. h4 Ke6 54. Kh3 Qe2 55. Kh2 Kf5 56. Kh1 Kg4 57. Kh2 f3 58. Kh1 Qxg2#) 50. e8=B+ Kxe8 51. Kf3 gxf4 (51... Qxf4+ 52. Ke2 Ke7 53. Kd3 Qg3+ 54. Ke4 Qxg2+ 55. Ke3 Qxh3+ 56. Kd4 g4 57. Ke4 g3 58. Kf3 g2+ 59. Kf2 Kf7 60. Ke2 g1=Q 61. Kd2 Qgg2+ 62. Ke1 Qhh1#) 52. h4 Ke7 (52... Qe3+ 53. Kg4 Qe4 54. h5 f3+ 55. Kg3 fxg2 56. Kf2 Qg4 57. Kg1 Kf7 58. h6 Kg8 59. h7+ Kxh7 60. Kh2 g1=Q#) 53. Kf2 Qe3+ 54. Kf1 Kf6 55. h5 Kg5 56. h6 Kg4 (56... Kxh6 57. g4 f3 58. g5+ Kg7 59. g6 Qe2+ 60. Kg1 Qg2#) 57. h7 Kg3 58. h8=Q Qf2#) 42. Nc7 {[%emt 0:01:36]} a2 {[%emt 0:00:00]} 0-1